[Event "MČR juniorů a juniorek v rapid šachu 2023"]
[Site "Czech Republic"]
[Date "2023.09.23"]
[Round "3.14"]
[White "Mrkvan, Frantisek"]
[Black "Sulc, Jakub"]
[Result "0-1"]
[TimeControl "20 min + 5 sec per move"]
[WhiteFideId "23721626"]
[BlackFideId "394050"]
[WhiteElo "1601"]
[BlackElo "1920"]

1. e4 {[%clk 00:20:07]} {[%emt 00:00:02]} e6 {[%clk 00:20:09]} 2. d4 {[%clk
00:20:08]} {[%emt 00:00:04]} d5 {[%clk 00:20:13]} {[%emt 00:00:02]} 3. e5
{[%clk 00:20:07]} {[%emt 00:00:06]} c5 {[%clk 00:20:17]} {[%emt 00:00:01]} 4.
c3 {[%clk 00:20:11]} {[%emt 00:00:02]} Nc6 {[%clk 00:20:21]} 5. Nf3 {[%clk
00:20:14]} Qb6 {[%clk 00:20:25]} 6. Bd3 {[%clk 00:20:18]} Bd7 {[%clk 00:20:29]}
{[%emt 00:00:02]} 7. O-O {[%clk 00:20:21]} cxd4 {[%clk 00:20:32]} {[%emt
00:00:03]} 8. Re1 {[%clk 00:20:25]} a6 {[%clk 00:19:23]} {[%emt 00:01:16]} 9.
Nbd2 {[%clk 00:19:11]} dxc3 {[%clk 00:18:08]} {[%emt 00:02:39]} 10. bxc3 {[%clk
00:19:14]} Bc5 {[%clk 00:18:12]} {[%emt 00:00:03]} 11. Qe2 {[%emt 00:00:19]}
Qc7 {[%clk 00:17:57]} {[%emt 00:00:15]} 12. c4 {[%clk 00:18:08]} {[%emt
00:01:02]} Nge7 {[%clk 00:16:26]} {[%emt 00:01:36]} 13. Nb3 {[%clk 00:17:27]}
{[%emt 00:00:46]} Bb4 {[%clk 00:16:23]} {[%emt 00:00:07]} 14. Rd1 {[%clk
00:17:30]} {[%emt 00:00:02]} dxc4 {[%clk 00:16:16]} {[%emt 00:00:12]} 15. Bxc4
{[%clk 00:17:30]} {[%emt 00:00:05]} b5 {[%clk 00:16:20]} {[%emt 00:00:02]} 16.
Bd3 {[%clk 00:17:22]} {[%emt 00:00:13]} Nd5 {[%clk 00:16:21]} {[%emt 00:00:03]}
17. Bb2 {[%clk 00:17:03]} {[%emt 00:00:25]} Bc3 {[%clk 00:13:59]} {[%emt
00:02:27]} 18. Be4 {[%clk 00:15:34]} {[%emt 00:01:34]} Nce7 {[%clk 00:10:31]}
{[%emt 00:03:32]} 19. Rac1 {[%clk 00:14:50]} {[%emt 00:00:49]} b4 {[%clk
00:10:35]} {[%emt 00:00:02]} 20. Nbd4 {[%clk 00:10:40]} {[%emt 00:04:15]} Qb6
{[%clk 00:08:27]} {[%emt 00:02:13]} 21. Bxc3 {[%clk 00:06:36]} {[%emt
00:04:09]} Nxc3 {[%clk 00:04:32]} {[%emt 00:04:00]} 22. Rxc3 {[%clk 00:05:16]}
{[%emt 00:01:25]} bxc3 {[%clk 00:04:36]} {[%emt 00:00:01]} 23. Bxa8 {[%clk
00:05:19]} {[%emt 00:00:02]} O-O {[%clk 00:03:53]} {[%emt 00:00:48]} 24. Be4
{[%clk 00:05:21]} {[%emt 00:00:03]} Rc8 {[%clk 00:03:57]} {[%emt 00:00:01]} 25.
Qc2 {[%clk 00:02:59]} {[%emt 00:02:27]} Qa5 {[%clk 00:02:46]} {[%emt 00:01:17]}
26. Nb3 {[%clk 00:02:37]} {[%emt 00:00:27]} Qc7 {[%clk 00:02:09]} {[%emt
00:00:42]} 27. Bxh7+ {[%clk 00:02:21]} {[%emt 00:00:20]} Kf8 {[%clk 00:02:05]}
{[%emt 00:00:09]} 28. Be4 {[%clk 00:02:06]} {[%emt 00:00:19]} f5 {[%clk
00:01:49]} {[%emt 00:00:21]} 29. exf6 {[%clk 00:01:54]} {[%emt 00:00:18]} gxf6
{[%clk 00:01:51]} {[%emt 00:00:03]} 30. g4 {[%clk 00:01:19]} {[%emt 00:00:39]}
f5 {[%clk 00:01:29]} {[%emt 00:00:28]} 31. gxf5 {[%clk 00:01:23]} exf5 {[%clk
00:01:33]} 32. Bd3 {[%clk 00:01:20]} {[%emt 00:00:08]} Kf7 {[%clk 00:00:58]}
{[%emt 00:00:40]} 33. Nbd4 {[%clk 00:00:56]} {[%emt 00:00:29]} Qf4 {[%clk
00:00:18]} {[%emt 00:00:45]} 34. Qb3+ {[%clk 00:00:29]} {[%emt 00:00:32]} Kf6
{[%clk 00:00:12]} {[%emt 00:00:11]} 35. Qb6+ {[%clk 00:00:17]} {[%emt
00:00:17]} Bc6 {[%clk 00:00:11]} {[%emt 00:00:05]} 36. Nxc6 {[%clk 00:00:17]}
{[%emt 00:00:05]} Rxc6 {[%clk 00:00:14]} {[%emt 00:00:02]} 37. Qd4+ {[%clk
00:00:20]} {[%emt 00:00:03]} Qxd4 {[%clk 00:00:17]} {[%emt 00:00:02]} 38. Nxd4
{[%clk 00:00:24]} Rd6 {[%clk 00:00:13]} {[%emt 00:00:09]} 39. Ne2 {[%emt
00:00:02]} Nd5 {[%clk 00:00:16]} 40. Bc4 {[%clk 00:00:29]} {[%emt 00:00:04]} c2
{[%clk 00:00:18]} {[%emt 00:00:03]} 41. Rxd5 {[%clk 00:00:29]} {[%emt
00:00:06]} Rc6 {[%clk 00:00:22]} 42. Bb3 {[%clk 00:00:18]} {[%emt 00:00:15]}
c1=Q+ {[%clk 00:00:25]} {[%emt 00:00:03]} 43. Nxc1 {[%clk 00:00:22]} Rxc1+
{[%clk 00:00:28]} 44. Kg2 {[%clk 00:00:27]} Rc6 {[%clk 00:00:27]} {[%emt
00:00:06]} 45. Rd8 {[%clk 00:00:23]} {[%emt 00:00:09]} Kg5 {[%clk 00:00:29]}
{[%emt 00:00:02]} 46. Rg8+ {[%clk 00:00:25]} {[%emt 00:00:03]} Kf4 {[%clk
00:00:33]} {[%emt 00:00:02]} 47. Rf8 {[%clk 00:00:23]} {[%emt 00:00:07]} Rg6+
{[%clk 00:00:11]} {[%emt 00:00:27]} 48. Kh1 {[%clk 00:00:22]} {[%emt 00:00:06]}
Rc6 {[%clk 00:00:11]} {[%emt 00:00:05]} 49. Kg2 {[%clk 00:00:19]} {[%emt
00:00:08]} Rg6+ {[%clk 00:00:14]} {[%emt 00:00:02]} 50. Kf1 {[%clk 00:00:23]}
Rc6 {[%clk 00:00:08]} {[%emt 00:00:11]} 51. Ke2 {[%clk 00:00:13]} {[%emt
00:00:16]} Ke5 {[%clk 00:00:09]} {[%emt 00:00:04]} 52. Re8+ {[%clk 00:00:15]}
{[%emt 00:00:03]} Kf4 {[%clk 00:00:13]} 53. Ra8 {[%clk 00:00:13]} {[%emt
00:00:06]} Rh6 {[%clk 00:00:12]} {[%emt 00:00:06]} 54. Bc4 {[%clk 00:00:15]}
{[%emt 00:00:04]} Rc6 {[%clk 00:00:10]} {[%emt 00:00:06]} 55. Bd3 {[%clk
00:00:15]} {[%emt 00:00:06]} Re6+ {[%clk 00:00:12]} {[%emt 00:00:04]} 56. Kf1
{[%clk 00:00:17]} {[%emt 00:00:02]} Rh6 {[%clk 00:00:08]} {[%emt 00:00:09]} 57.
Rxa6 {[%clk 00:00:19]} {[%emt 00:00:04]} Rh3 {[%clk 00:00:11]} {[%emt
00:00:02]} 58. Ra4+ {[%clk 00:00:20]} {[%emt 00:00:04]} Kg5 {[%clk 00:00:09]}
{[%emt 00:00:07]} 59. Bc2 {[%clk 00:00:22]} {[%emt 00:00:03]} Rc3 {[%clk
00:00:10]} {[%emt 00:00:04]} 60. Bb3 {[%clk 00:00:17]} {[%emt 00:00:10]} f4
{[%clk 00:00:14]} {[%emt 00:00:01]} 61. Ra5+ {[%clk 00:00:20]} {[%emt
00:00:02]} Kg4 {[%clk 00:00:17]} 62. Kg2 {[%clk 00:00:23]} {[%emt 00:00:03]}
f3+ {[%clk 00:00:20]} {[%emt 00:00:02]} 63. Kg1 {[%clk 00:00:16]} {[%emt
00:00:12]} Rc1+ {[%clk 00:00:24]} 0-1

[Event "MČR juniorů a juniorek v rapid šachu 2023"]
[Site "Czech Republic"]
[Date "2023.09.23"]
[Round "3.15"]
[White "Vilimek, Vit"]
[Black "Housa, Vojtech"]
[Result "1-0"]
[TimeControl "20 min + 5 sec per move"]
[WhiteFideId "23718218"]
[BlackFideId "23736364"]
[WhiteElo "1898"]
[BlackElo "1539"]

1. e4 {[%clk 00:20:09]} {[%emt 00:00:01]} c5 {[%clk 00:20:08]} {[%emt
00:00:02]} 2. b4 {[%clk 00:20:13]} cxb4 {[%clk 00:19:43]} {[%emt 00:00:30]} 3.
a3 {[%clk 00:20:18]} e6 {[%clk 00:19:41]} {[%emt 00:00:08]} 4. axb4 {[%clk
00:20:19]} {[%emt 00:00:04]} Bxb4 {[%clk 00:19:43]} {[%emt 00:00:03]} 5. c3
{[%clk 00:20:23]} Be7 {[%clk 00:19:30]} {[%emt 00:00:18]} 6. d4 {[%clk
00:20:27]} {[%emt 00:00:01]} b6 {[%clk 00:19:21]} {[%emt 00:00:15]} 7. Bd3
{[%clk 00:20:30]} {[%emt 00:00:01]} Bb7 {[%clk 00:19:20]} {[%emt 00:00:06]} 8.
f4 {[%clk 00:20:29]} {[%emt 00:00:06]} d6 {[%clk 00:18:56]} {[%emt 00:00:29]} 9.
Nf3 {[%clk 00:20:32]} {[%emt 00:00:02]} Nf6 {[%clk 00:18:58]} {[%emt 00:00:03]}
10. Qe2 {[%clk 00:20:32]} {[%emt 00:00:04]} Qc7 {[%clk 00:18:08]} {[%emt
00:00:56]} 11. O-O {[%clk 00:20:34]} {[%emt 00:00:02]} O-O {[%clk 00:18:10]}
{[%emt 00:00:03]} 12. Ra2 {[%clk 00:20:12]} {[%emt 00:00:28]} Nbd7 {[%clk
00:17:39]} {[%emt 00:00:36]} 13. h3 {[%clk 00:20:12]} {[%emt 00:00:04]} h5
{[%clk 00:17:26]} {[%emt 00:00:19]} 14. Ng5 {[%clk 00:20:10]} {[%emt 00:00:07]}
g6 {[%clk 00:17:05]} {[%emt 00:00:27]} 15. f5 {[%clk 00:19:47]} {[%emt
00:00:28]} exf5 {[%clk 00:16:32]} {[%emt 00:00:38]} 16. exf5 {[%clk 00:19:49]}
{[%emt 00:00:02]} Qc6 {[%clk 00:14:52]} {[%emt 00:01:45]} 17. fxg6 {[%clk
00:19:24]} {[%emt 00:00:29]} fxg6 {[%clk 00:13:27]} {[%emt 00:01:31]} 18. Bxg6
{[%clk 00:19:21]} {[%emt 00:00:08]} Kg7 {[%clk 00:12:57]} {[%emt 00:00:35]} 19.
Bxh5 {[%clk 00:18:02]} {[%emt 00:01:23]} Nxh5 {[%clk 00:12:43]} {[%emt
00:00:20]} 20. Qxe7+ {[%clk 00:18:01]} {[%emt 00:00:05]} 1-0

[Event "MČR juniorů a juniorek v rapid šachu 2023"]
[Site "Czech Republic"]
[Date "2023.09.23"]
[Round "3.16"]
[White "Merinsky, Vaclav"]
[Black "Stary, Simon"]
[Result "1/2-1/2"]
[TimeControl "20 min + 5 sec per move"]
[WhiteFideId "390062"]
[BlackFideId "23734353"]
[WhiteElo "1869"]
[BlackElo "1518"]

1. e4 {[%clk 00:20:08]} {[%emt 00:00:01]} c5 {[%clk 00:20:10]} {[%emt
00:00:01]} 2. d4 {[%clk 00:20:12]} cxd4 {[%clk 00:20:14]} {[%emt 00:00:01]} 3.
Qxd4 {[%clk 00:20:15]} {[%emt 00:00:02]} Nc6 {[%clk 00:20:18]} 4. Qd1 {[%clk
00:20:19]} Nf6 {[%clk 00:20:20]} {[%emt 00:00:03]} 5. Nc3 {[%clk 00:20:22]}
{[%emt 00:00:02]} d6 {[%clk 00:20:23]} {[%emt 00:00:03]} 6. Nf3 {[%clk
00:20:18]} {[%emt 00:00:08]} g6 {[%clk 00:20:23]} {[%emt 00:00:05]} 7. Bc4
{[%clk 00:19:44]} {[%emt 00:00:39]} Bg7 {[%clk 00:20:25]} {[%emt 00:00:04]} 8.
Be3 {[%clk 00:19:26]} {[%emt 00:00:22]} O-O {[%clk 00:20:27]} {[%emt 00:00:03]}
9. Qc1 {[%clk 00:19:12]} {[%emt 00:00:18]} Ng4 {[%clk 00:20:14]} {[%emt
00:00:19]} 10. Bd2 {[%clk 00:18:56]} {[%emt 00:00:20]} Nce5 {[%clk 00:20:11]}
{[%emt 00:00:09]} 11. Nxe5 {[%clk 00:18:37]} {[%emt 00:00:24]} Nxe5 {[%clk
00:20:14]} {[%emt 00:00:02]} 12. Bb3 {[%clk 00:18:31]} {[%emt 00:00:11]} Be6
{[%clk 00:19:43]} {[%emt 00:00:36]} 13. O-O {[%clk 00:18:12]} {[%emt 00:00:24]}
Nc4 {[%clk 00:18:57]} {[%emt 00:00:52]} 14. Bg5 {[%clk 00:16:41]} {[%emt
00:01:34]} Rc8 {[%clk 00:18:42]} {[%emt 00:00:22]} 15. Bxc4 {[%clk 00:14:21]}
{[%emt 00:02:25]} Bxc4 {[%clk 00:18:45]} {[%emt 00:00:01]} 16. Nd5 {[%clk
00:13:25]} {[%emt 00:01:00]} Bxd5 {[%clk 00:18:39]} {[%emt 00:00:12]} 17. exd5
{[%clk 00:13:28]} {[%emt 00:00:02]} Re8 {[%clk 00:18:30]} {[%emt 00:00:14]} 18.
c3 {[%clk 00:13:27]} {[%emt 00:00:06]} Qa5 {[%clk 00:17:52]} {[%emt 00:00:43]}
19. Qd2 {[%clk 00:12:50]} {[%emt 00:00:40]} e6 {[%clk 00:17:48]} {[%emt
00:00:11]} 20. dxe6 {[%clk 00:12:45]} {[%emt 00:00:10]} Rxe6 {[%clk 00:17:26]}
{[%emt 00:00:27]} 21. Be3 {[%clk 00:12:37]} {[%emt 00:00:12]} d5 {[%clk
00:15:58]} {[%emt 00:01:34]} 22. Rfd1 {[%clk 00:12:14]} {[%emt 00:00:27]} Rd8
{[%clk 00:15:59]} {[%emt 00:00:05]} 23. Bd4 {[%clk 00:11:41]} {[%emt 00:00:37]}
Rde8 {[%clk 00:15:08]} {[%emt 00:00:58]} 24. Bxg7 {[%clk 00:11:10]} {[%emt
00:00:36]} Kxg7 {[%clk 00:15:11]} {[%emt 00:00:01]} 25. Qd4+ {[%clk 00:10:36]}
{[%emt 00:00:37]} Kg8 {[%clk 00:15:15]} 26. g3 {[%clk 00:10:32]} {[%emt
00:00:12]} Re2 {[%clk 00:14:47]} {[%emt 00:00:34]} 27. b4 {[%clk 00:10:29]}
{[%emt 00:00:07]} Qa4 {[%clk 00:09:14]} {[%emt 00:05:38]} 28. Qxd5 {[%clk
00:10:16]} {[%emt 00:00:17]} Qc2 {[%clk 00:09:18]} 29. Rf1 {[%clk 00:06:03]}
{[%emt 00:04:18]} b6 {[%clk 00:08:52]} {[%emt 00:00:31]} 30. Qd4 {[%clk
00:05:43]} {[%emt 00:00:24]} R8e4 {[%clk 00:08:52]} {[%emt 00:00:05]} 31. Qf6
{[%clk 00:05:28]} {[%emt 00:00:18]} Re6 {[%clk 00:08:45]} {[%emt 00:00:14]} 32.
Qd8+ {[%clk 00:04:33]} {[%emt 00:00:58]} Kg7 {[%clk 00:08:26]} {[%emt
00:00:26]} 33. Qd4+ {[%clk 00:04:32]} {[%emt 00:00:06]} Kg8 {[%clk 00:08:26]}
{[%emt 00:00:05]} 34. a3 {[%clk 00:04:19]} {[%emt 00:00:18]} R6e4 {[%clk
00:08:08]} {[%emt 00:00:23]} 35. Qf6 {[%clk 00:04:12]} {[%emt 00:00:12]} Re6
{[%clk 00:08:12]} {[%emt 00:00:02]} 36. Qd8+ {[%clk 00:04:05]} {[%emt
00:00:12]} Re8 {[%clk 00:08:17]} 37. Qc7 {[%clk 00:03:32]} {[%emt 00:00:36]}
R8e7 {[%clk 00:08:18]} {[%emt 00:00:04]} 38. Qb8+ {[%clk 00:03:08]} {[%emt
00:00:28]} Kg7 {[%clk 00:08:20]} {[%emt 00:00:05]} 39. Qc8 {[%clk 00:03:01]}
{[%emt 00:00:08]} Re8 {[%clk 00:08:14]} {[%emt 00:00:15]} 40. Qd7 {[%clk
00:02:58]} {[%emt 00:00:07]} R8e7 {[%clk 00:08:10]} {[%emt 00:00:10]} 41. Qd4+
{[%clk 00:03:00]} {[%emt 00:00:03]} Kg8 {[%clk 00:07:57]} {[%emt 00:00:19]} 42.
Rad1 {[%clk 00:02:54]} {[%emt 00:00:09]} Qa4 {[%clk 00:07:52]} {[%emt
00:00:11]} 43. Qd8+ {[%clk 00:02:18]} {[%emt 00:00:35]} Re8 {[%clk 00:07:47]}
{[%emt 00:00:15]} 44. Qc7 {[%clk 00:01:57]} {[%emt 00:00:24]} R2e7 {[%clk
00:07:48]} {[%emt 00:00:06]} 45. Qc4 {[%clk 00:01:42]} {[%emt 00:00:15]} Qxa3
{[%clk 00:07:42]} {[%emt 00:00:18]} 46. Ra1 {[%clk 00:01:38]} {[%emt 00:00:08]}
Qb2 {[%clk 00:07:45]} {[%emt 00:00:02]} 47. Ra2 {[%clk 00:01:40]} {[%emt
00:00:03]} b5 {[%clk 00:07:26]} {[%emt 00:00:25]} 48. Qxf7+ {[%clk 00:01:28]}
{[%emt 00:00:16]} Kxf7 {[%clk 00:07:25]} {[%emt 00:00:06]} 49. Rxb2 {[%clk
00:01:31]} {[%emt 00:00:03]} Rc8 {[%clk 00:07:29]} 50. Rb3 {[%clk 00:01:31]}
{[%emt 00:00:05]} Rec7 {[%clk 00:07:32]} {[%emt 00:00:02]} 51. Ra3 {[%clk
00:01:29]} {[%emt 00:00:04]} Ke6 {[%clk 00:07:32]} {[%emt 00:00:07]} 52. Rfa1
{[%clk 00:01:24]} {[%emt 00:00:10]} Rxc3 {[%clk 00:07:29]} {[%emt 00:00:08]} 53.
Rxa7 {[%clk 00:01:18]} {[%emt 00:00:11]} Rc1+ {[%clk 00:07:21]} {[%emt
00:00:13]} 54. Rxc1 {[%clk 00:01:15]} {[%emt 00:00:08]} Rxc1+ {[%clk 00:07:25]}
{[%emt 00:00:02]} 55. Kg2 {[%clk 00:01:19]} Rc4 {[%clk 00:07:26]} {[%emt
00:00:04]} 56. Rxh7 {[%emt 00:00:03]} Rxb4 57. Rg7 {[%clk 00:01:18]} {[%emt
00:00:09]} Kf6 {[%clk 00:07:33]} {[%emt 00:00:02]} 58. Rb7 {[%clk 00:01:18]}
{[%emt 00:00:04]} Rb2 {[%clk 00:07:29]} {[%emt 00:00:10]} 59. h4 {[%clk
00:01:15]} {[%emt 00:00:08]} b4 {[%clk 00:07:32]} {[%emt 00:00:02]} 60. Kf3
{[%clk 00:01:19]} {[%emt 00:00:01]} b3 {[%clk 00:07:35]} {[%emt 00:00:02]} 61.
Ke3 {[%clk 00:01:19]} {[%emt 00:00:04]} Kf5 {[%clk 00:07:31]} {[%emt 00:00:09]}
62. Rb4 {[%clk 00:01:22]} {[%emt 00:00:03]} Kf6 {[%clk 00:07:14]} {[%emt
00:00:22]} 63. f3 {[%clk 00:01:19]} {[%emt 00:00:08]} Rg2 {[%clk 00:07:11]}
{[%emt 00:00:08]} 64. Rxb3 {[%clk 00:01:10]} {[%emt 00:00:15]} Rxg3 {[%clk
00:07:14]} 65. Kf4 {[%clk 00:01:08]} {[%emt 00:00:06]} Rg1 {[%clk 00:06:53]}
{[%emt 00:00:27]} 66. Rb5 {[%clk 00:01:00]} {[%emt 00:00:12]} Rh1 {[%clk
00:06:41]} {[%emt 00:00:19]} 67. Kg3 {[%clk 00:00:29]} {[%emt 00:00:35]} Rg1+
{[%clk 00:06:39]} {[%emt 00:00:07]} 68. Kf2 {[%clk 00:00:29]} {[%emt 00:00:04]}
Rh1 {[%clk 00:06:43]} {[%emt 00:00:02]} 69. Rb4 {[%clk 00:00:30]} {[%emt
00:00:04]} g5 {[%clk 00:06:43]} {[%emt 00:00:05]} 70. hxg5+ {[%clk 00:00:31]}
{[%emt 00:00:05]} Kxg5 {[%clk 00:06:45]} {[%emt 00:00:02]} 71. f4+ {[%clk
00:00:32]} {[%emt 00:00:04]} Kf6 {[%clk 00:06:39]} {[%emt 00:00:11]} 72. Kg2
{[%clk 00:00:28]} {[%emt 00:00:09]} Ra1 {[%clk 00:06:42]} {[%emt 00:00:02]} 73.
Kg3 {[%clk 00:00:28]} {[%emt 00:00:04]} Rg1+ {[%clk 00:06:44]} {[%emt
00:00:04]} 74. Kf2 {[%clk 00:00:31]} {[%emt 00:00:01]} Ra1 {[%clk 00:06:48]}
{[%emt 00:00:02]} 75. Kf3 {[%clk 00:00:24]} {[%emt 00:00:12]} Rf1+ {[%clk
00:06:51]} {[%emt 00:00:02]} 76. Ke2 {[%clk 00:00:26]} {[%emt 00:00:03]} Ra1
{[%clk 00:06:53]} {[%emt 00:00:04]} 77. Rb3 {[%clk 00:00:27]} {[%emt 00:00:03]}
1/2-1/2

[Event "MČR juniorů a juniorek v rapid šachu 2023"]
[Site "Czech Republic"]
[Date "2023.09.23"]
[Round "3.17"]
[White "Simunek, Jakub Simon"]
[Black "Mikolas, Petr"]
[Result "1-0"]
[TimeControl "20 min + 5 sec per move"]
[WhiteFideId "23709464"]
[BlackFideId "23713224"]
[WhiteElo "1843"]
[BlackElo "1514"]

1. e4 {[%clk 00:20:08]} {[%emt 00:00:02]} c5 {[%clk 00:20:09]} {[%emt
00:00:02]} 2. Nf3 {[%clk 00:20:11]} d6 {[%clk 00:20:14]} {[%emt 00:00:01]} 3.
Bb5+ {[%clk 00:20:15]} {[%emt 00:00:02]} Nd7 {[%clk 00:20:17]} 4. c3 {[%clk
00:20:17]} {[%emt 00:00:03]} a6 {[%clk 00:20:20]} {[%emt 00:00:02]} 5. Ba4
{[%clk 00:20:21]} b5 {[%clk 00:20:17]} {[%emt 00:00:08]} 6. Bc2 {[%clk
00:20:24]} {[%emt 00:00:02]} Bb7 {[%clk 00:20:17]} {[%emt 00:00:06]} 7. O-O
{[%clk 00:20:21]} {[%emt 00:00:07]} Ngf6 {[%clk 00:20:20]} {[%emt 00:00:03]} 8.
Qe2 {[%clk 00:20:22]} {[%emt 00:00:04]} e6 {[%clk 00:17:54]} {[%emt 00:02:30]}
9. d4 {[%clk 00:20:23]} {[%emt 00:00:04]} Be7 {[%clk 00:17:41]} {[%emt
00:00:19]} 10. Rd1 {[%clk 00:19:27]} {[%emt 00:01:01]} Qc7 {[%clk 00:17:09]}
{[%emt 00:00:36]} 11. e5 {[%clk 00:16:30]} {[%emt 00:03:02]} dxe5 {[%clk
00:14:54]} {[%emt 00:02:21]} 12. dxe5 {[%clk 00:15:28]} {[%emt 00:01:06]} Bxf3
{[%clk 00:14:05]} {[%emt 00:00:55]} 13. Qxf3 {[%clk 00:15:31]} {[%emt
00:00:02]} Nd5 {[%clk 00:14:09]} {[%emt 00:00:02]} 14. Be4 {[%clk 00:12:47]}
{[%emt 00:02:49]} Nxe5 {[%clk 00:12:53]} {[%emt 00:01:21]} 15. Qg3 {[%clk
00:11:34]} {[%emt 00:01:17]} Rd8 {[%clk 00:10:33]} {[%emt 00:02:25]} 16. Bxd5
{[%clk 00:06:07]} {[%emt 00:05:32]} Rxd5 {[%clk 00:07:52]} {[%emt 00:02:46]} 17.
Rxd5 {[%clk 00:06:09]} {[%emt 00:00:04]} exd5 {[%clk 00:07:56]} 18. Qxg7 {[%clk
00:03:33]} {[%emt 00:02:41]} Ng6 {[%clk 00:06:49]} {[%emt 00:01:12]} 19. Nd2
{[%clk 00:02:49]} {[%emt 00:00:49]} Kd7 {[%clk 00:05:35]} {[%emt 00:01:20]} 20.
Nf3 {[%clk 00:01:40]} {[%emt 00:01:14]} Rf8 {[%clk 00:03:34]} {[%emt 00:02:05]}
21. Bd2 {[%clk 00:00:46]} {[%emt 00:00:58]} Qd6 {[%clk 00:02:30]} {[%emt
00:01:09]} 22. Re1 {[%clk 00:00:17]} {[%emt 00:00:34]} Qf6 {[%clk 00:02:20]}
{[%emt 00:00:16]} 23. Qh6 {[%clk 00:00:14]} {[%emt 00:00:07]} Bd6 {[%clk
00:01:51]} {[%emt 00:00:35]} 24. Qh3+ {[%clk 00:00:12]} {[%emt 00:00:07]} Kc7
{[%clk 00:01:37]} {[%emt 00:00:19]} 25. Bg5 {[%clk 00:00:15]} {[%emt 00:00:02]}
Qg7 {[%clk 00:01:22]} {[%emt 00:00:20]} 26. Bh6 {[%clk 00:00:18]} {[%emt
00:00:02]} Nf4 {[%clk 00:01:13]} {[%emt 00:00:13]} 27. Bxg7 {[%clk 00:00:19]}
{[%emt 00:00:04]} Nxh3+ {[%clk 00:01:17]} 28. gxh3 {[%clk 00:00:24]} Rg8 {[%clk
00:01:22]} 29. Kf1 {[%clk 00:00:14]} {[%emt 00:00:15]} Rxg7 {[%clk 00:01:26]}
30. Re8 {[%clk 00:00:18]} f6 {[%clk 00:01:02]} {[%emt 00:00:29]} 31. Ra8 {[%clk
00:00:12]} {[%emt 00:00:10]} Kb7 {[%clk 00:01:06]} 32. Rd8 {[%clk 00:00:15]}
{[%emt 00:00:02]} Kc7 {[%clk 00:00:51]} {[%emt 00:00:21]} 33. Ra8 {[%clk
00:00:17]} {[%emt 00:00:03]} Kb7 {[%clk 00:00:37]} {[%emt 00:00:18]} 34. Re8
{[%clk 00:00:21]} {[%emt 00:00:02]} Bf4 {[%clk 00:00:34]} {[%emt 00:00:08]} 35.
Re6 {[%clk 00:00:20]} {[%emt 00:00:05]} Bc1 {[%emt 00:00:08]} 36. b3 {[%clk
00:00:19]} {[%emt 00:00:04]} Bb2 {[%clk 00:00:34]} {[%emt 00:00:04]} 37. Rd6
{[%clk 00:00:13]} {[%emt 00:00:12]} Bxc3 {[%clk 00:00:34]} {[%emt 00:00:05]} 38.
Rxd5 {[%clk 00:00:17]} Kc6 {[%clk 00:00:37]} {[%emt 00:00:02]} 39. Rf5 {[%clk
00:00:20]} {[%emt 00:00:02]} Rd7 {[%clk 00:00:34]} {[%emt 00:00:08]} 40. Ke2
{[%clk 00:00:21]} {[%emt 00:00:04]} Rd5 {[%clk 00:00:34]} {[%emt 00:00:05]} 41.
Rf4 {[%clk 00:00:13]} {[%emt 00:00:13]} Be5 {[%clk 00:00:29]} {[%emt 00:00:10]}
42. Rh4 {[%clk 00:00:13]} {[%emt 00:00:03]} Rd7 {[%clk 00:00:30]} {[%emt
00:00:05]} 43. Nxe5+ {[%clk 00:00:16]} {[%emt 00:00:03]} fxe5 {[%clk 00:00:35]}
44. Rh6+ {[%clk 00:00:19]} {[%emt 00:00:01]} Kb7 {[%clk 00:00:29]} {[%emt
00:00:11]} 45. Re6 {[%clk 00:00:23]} c4 {[%clk 00:00:25]} {[%emt 00:00:09]} 46.
bxc4 {[%clk 00:00:26]} {[%emt 00:00:02]} bxc4 {[%clk 00:00:30]} 47. Rxe5 {[%clk
00:00:29]} Kb6 {[%clk 00:00:34]} {[%emt 00:00:01]} 48. Re3 {[%clk 00:00:27]}
{[%emt 00:00:07]} Kc5 {[%clk 00:00:38]} {[%emt 00:00:01]} 49. Rc3 {[%clk
00:00:25]} {[%emt 00:00:07]} Kb4 {[%clk 00:00:39]} {[%emt 00:00:04]} 50. Rc2
{[%clk 00:00:29]} a5 {[%clk 00:00:19]} {[%emt 00:00:24]} 51. f4 {[%clk
00:00:31]} {[%emt 00:00:03]} a4 {[%clk 00:00:21]} {[%emt 00:00:03]} 52. Ke3
{[%clk 00:00:25]} {[%emt 00:00:11]} Re7+ {[%clk 00:00:26]} 53. Kf3 {[%clk
00:00:28]} {[%emt 00:00:03]} c3 {[%clk 00:00:29]} {[%emt 00:00:02]} 54. f5
{[%clk 00:00:30]} {[%emt 00:00:03]} Rd7 {[%clk 00:00:33]} 55. Ke3 {[%clk
00:00:31]} {[%emt 00:00:04]} Rd5 {[%clk 00:00:32]} {[%emt 00:00:06]} 56. Rf2
{[%clk 00:00:21]} {[%emt 00:00:15]} Rd7 {[%clk 00:00:07]} {[%emt 00:00:30]} 57.
f6 {[%clk 00:00:23]} {[%emt 00:00:02]} Rf7 {[%emt 00:00:02]} 58. Kd3 {[%clk
00:00:27]} a3 {[%clk 00:00:14]} {[%emt 00:00:03]} 59. Kc2 {[%clk 00:00:30]}
{[%emt 00:00:02]} Rf8 {[%clk 00:00:15]} {[%emt 00:00:04]} 60. Rf4+ {[%clk
00:00:31]} {[%emt 00:00:03]} Kc5 {[%clk 00:00:11]} {[%emt 00:00:04]} 61. Kxc3
{[%clk 00:00:35]} {[%emt 00:00:07]} Kd5 {[%clk 00:00:13]} {[%emt 00:00:03]} 62.
Kb3 {[%clk 00:00:38]} {[%emt 00:00:02]} Ke5 {[%clk 00:00:17]} 63. Rf1 {[%clk
00:00:42]} Kd5 {[%emt 00:00:21]} 1-0